bitfinex-derivatives/quotes_SOLF0:USTF0_20251126
["timestamp","ask_amount","ask_price","bid_price","bid_amount"]
[1764137965853,6.4971,138.59,138.57,0.04917415]
[1764137966456,6.4971,138.59,138.57,3.12917415]
[1764137967050,6.4971,138.59,138.57,0.04917415]
[1764137967254,11.62048196,138.59,138.57,0.04917415]
[1764137967452,6.4986,138.56,138.5,3.08]
[1764137968057,11.62198196,138.56,138.5,3.08]
[1764137968257,6.4986,138.56,138.5,3.08]
[1764137968453,0.04889342,138.54,138.52,0.05156271]
[1764137968851,0.04889342,138.54,138.5,3.08]
[1764137969457,129.45919537,138.58,138.5,3.08]
[1764137969458,6.73409537,138.6,138.5,3.08]
[1764137969646,5.1147274,138.6,138.5,3.08]
[1764137970254,24.74,138.61,138.5,3.08]
[1764137970255,5.1147274,138.59,138.5,3.08]
[1764137970453,0.05527677,138.56,138.54,3.08]
[1764137970652,0.05481508,138.56,138.54,3.13369309]
[1764137982663,5.11284407,138.6,138.54,3.13369309]
[1764137982867,5.11284407,138.62,138.54,3.13369309]
[1764137983062,5.11284407,138.62,138.54,3.08]
[1764137983764,0.04737614,138.59,138.58,3.04]
[1764137986463,5.10850809,138.64,138.58,3.04]
[1764137986964,6.97509734,138.65,138.58,3.04]
[1764137987362,6.97509734,138.65,138.6,0.04953295]
[1764137987569,6.97509734,138.65,138.6,3.08953295]
[1764137987765,5.10850809,138.65,138.6,3.08953295]
[1764137988066,6.97509734,138.65,138.6,3.08953295]
[1764137988369,1.86658925,138.65,138.6,3.08953295]
[1764137988567,6.97509734,138.65,138.6,3.08953295]
[1764137988764,1.86658925,138.65,138.6,3.08953295]
[1764137988965,6.97509734,138.65,138.6,3.08953295]
[1764137989268,1.86658925,138.65,138.6,3.08953295]
[1764137989460,6.97509734,138.65,138.6,3.08953295]
[1764137989661,1.86658925,138.65,138.6,3.08953295]
[1764137989862,6.97509734,138.65,138.6,3.08953295]
[1764137990064,5.10850809,138.64,138.6,3.08953295]
[1764137991262,6.97509734,138.65,138.6,3.08953295]
[1764137993170,13.46939734,138.65,138.6,3.08953295]
[1764137993371,5.10850809,138.64,138.6,3.08953295]
[1764137994176,1.86658925,138.65,138.6,3.08953295]
[1764137994370,6.4949,138.64,138.6,3.08953295]
[1764137996272,6.4953,138.63,138.6,3.08953295]
[1764137998980,5.10850809,138.65,138.6,3.08953295]
[1764137999774,101.0173,138.66,138.6,3.08953295]
[1764138000172,6.4947,138.64,138.6,3.08953295]
[1764138001673,1.86658925,138.69,138.6,3.08953295]
[1764138001878,5.10361407,138.69,138.64,3.04]
[1764138002182,6.97020332,138.71,138.64,3.04]
[1764138002386,5.10361407,138.71,138.67,2.91]
[1764138002594,132.65630332,138.73,138.67,2.91]
[1764138002788,5.10361407,138.72,138.67,2.91]
[1764138002987,6.4915,138.71,138.67,2.91]
[1764138003195,31.69020332,138.73,138.67,2.91]
[1764138004204,1.86658925,138.69,138.66,0.05092654]
[1764138005002,8.35818925,138.71,138.66,2.96092654]
[1764138005599,1.86658925,138.71,138.66,2.96092654]
[1764138009210,1.86658925,138.69,138.66,0.05092654]
[1764138010098,1.86658925,138.69,138.66,2.96092654]
[1764138012503,8.35908925,138.69,138.66,0.05092654]
[1764138015398,6.4925,138.69,138.66,3.09092654]
[1764138017702,8.35828925,138.71,138.66,3.09092654]
[1764138017902,1.86658925,138.71,138.66,3.09092654]
[1764138018912,1.86658925,138.69,138.66,0.05092654]
[1764138019707,6.4929,138.68,138.66,0.05092654]
[1764138019899,1.86658925,138.67,138.66,0.05092654]
[1764138020102,1.86658925,138.67,138.61,3.04]
[1764138020311,1.86658925,138.65,138.61,3.04]
[1764138021106,0.05092654,138.64,138.62,3.09227112]
[1764138021905,6.54572654,138.64,138.62,3.09227112]
[1764138022112,6.54572654,138.64,138.62,0.05227112]
[1764138023105,6.4955,138.63,138.6,3.04]
[1764138023412,1.86658925,138.63,138.56,3.04]
[1764138023810,101.032,138.64,138.56,3.04]
[1764138024001,1.86658925,138.63,138.56,3.04]
[1764138024207,0.05428476,138.61,138.59,3.04]
[1764138035322,0.05428476,138.61,138.58,0.04901419]
[1764138035525,1.92087401,138.61,138.58,0.04901419]
[1764138036227,6.4967,138.6,138.58,3.08901419]
[1764138041230,1.92087401,138.61,138.58,3.08901419]
[1764138041231,0.05428476,138.61,138.58,3.08901419]
[1764138041927,6.4966,138.6,138.58,3.08901419]
[1764138046131,0.05428476,138.61,138.58,3.08901419]
[1764138047336,0.05428476,138.61,138.58,0.04901419]
[1764138047528,104.02405324,138.61,138.58,0.04901419]
[1764138047725,101.0619,138.6,138.54,2.87]
[1764138048635,0.04714072,138.58,138.56,0.04547581]
[1764138049332,6.4983,138.57,138.56,0.04547581]
[1764138052235,0.04714072,138.58,138.56,2.91547581]
[1764138053136,6.54474072,138.58,138.56,2.91547581]
[1764138053441,6.54474072,138.58,138.56,0.04547581]
[1764138054742,0.04714072,138.58,138.56,2.91547581]
[1764138061647,24.7,138.64,138.56,2.91547581]
[1764138061850,29.82190633,138.64,138.56,2.91547581]
[1764138062041,5.12190633,138.64,138.56,2.91547581]
[1764138062443,6.4961,138.61,138.56,2.91547581]
[1764138062840,0.04703648,138.6,138.56,0.04547581]
[1764138063138,8.08531129,138.6,138.56,0.04547581]
[1764138063544,6.4977,138.58,138.56,0.04547581]
[1764138065549,5.12190633,138.58,138.51,2.9]
[1764138065748,5.12190633,138.59,138.51,2.9]
[1764138066049,5.12190633,138.58,138.51,2.9]
[1764138066255,5.12190633,138.59,138.51,2.9]
[1764138066448,0.05108937,138.56,138.54,0.05266887]
[1764138067852,101.1091,138.53,138.48,2.9]
[1764138068048,104.02546848,138.53,138.45,2.9]
[1764138068654,106.23868218,138.52,138.45,2.9]
[1764138068851,0.05433398,138.5,138.47,0.04752006]
[1764138069053,6.5019,138.49,138.47,0.04752006]
[1764138069356,101.1491,138.48,138.41,2.9]
[1764138069560,2.91636848,138.47,138.41,2.9]
[1764138069857,101.1363,138.5,138.41,2.9]
[1764138070051,29.85480805,138.49,138.41,2.9]
[1764138070251,0.04916599,138.46,138.44,2.95411722]
[1764138070451,0.04916599,138.46,138.44,2.94782618]
[1764138070659,5.11037884,138.53,138.45,2.9]
[1764138070858,32.76674732,138.54,138.45,2.9]
[1764138071057,6.5004,138.52,138.45,2.9]
[1764138071663,0.05177105,138.5,138.48,3.09]
[1764138072562,0.05177105,138.5,138.47,0.04956922]
[1764138073365,6.502,138.49,138.47,0.04956922]
[1764138079177,0.05177105,138.5,138.47,3.13956922]
[1764138085593,6.55317105,138.5,138.47,3.13956922]
[1764138088084,0.05177105,138.5,138.47,3.13956922]
[1764138097095,0.05177105,138.5,138.49,3.09]
[1764138098500,6.499,138.55,138.49,3.09]
[1764138099300,6.4981,138.57,138.52,3.09]
[1764138099602,0.04982542,138.56,138.53,3.13569383]
[1764138100001,6.54832542,138.56,138.53,0.04569383]
[1764138100197,0.04982542,138.56,138.53,0.04569383]
[1764138100604,6.54832542,138.56,138.53,0.04569383]
[1764138106815,6.54832542,138.56,138.53,3.20569383]
[1764138107203,6.499,138.55,138.53,3.20569383]
[1764138107612,6.499,138.55,138.53,0.04569383]
[1764138108408,6.499,138.55,138.53,3.20569383]
[1764138111614,6.499,138.55,138.53,0.04569383]
[1764138112815,6.499,138.55,138.53,3.20569383]
[1764138113220,1.8680632,138.54,138.44,13.4788566]
[1764138113516,101.1261,138.51,138.44,3.16]
[1764138113717,1.8680632,138.48,138.44,3.16]
[1764138113920,8.3695632,138.5,138.44,3.16]
[1764138114314,0.05524333,138.48,138.47,3.16]
[1764138114620,1.8680632,138.52,138.47,3.16]
[1764138114621,8.3685632,138.52,138.47,3.16]
[1764138115715,0.05277024,138.51,138.47,3.16]
[1764138118721,0.05277024,138.51,138.47,5.0280632]
[1764138118927,0.05277024,138.51,138.48,3.16]
[1764138124424,0.05277024,138.51,138.49,2.9]
[1764138128237,0.05277024,138.51,138.49,9.4016]
[1764138128531,0.05277024,138.51,138.5,2.9]
[1764138131133,6.4985,138.56,138.52,3.02]
[1764138131134,5.11554221,138.56,138.52,3.02]
[1764138131324,5.11554221,138.57,138.52,3.02]
[1764138131524,5.11554221,138.56,138.52,3.02]
[1764138131721,5.11554221,138.57,138.52,3.02]
[1764138131931,5.11554221,138.57,138.54,3.02]
[1764138132126,110.04890345,138.62,138.56,3.02]
[1764138132127,5.11554221,138.59,138.56,3.02]
[1764138132329,5.11554221,138.61,138.56,3.02]
[1764138132530,5.11554221,138.62,138.58,3.02]
[1764138132727,5.11554221,138.63,138.58,3.02]
[1764138133032,5.11554221,138.62,138.58,3.02]
[1764138133233,5.15449509,138.61,138.59,0.04824818]
[1764138133536,0.03895288,138.61,138.59,0.04824818]
[1764138134234,5.15449509,138.61,138.59,0.04824818]
[1764138136434,0.03895288,138.61,138.59,0.04824818]
[1764138138740,0.03895288,138.61,138.59,3.06824818]
[1764138145044,1.8680632,138.6,138.59,0.04824818]
[1764138146342,6.53525288,138.61,138.59,3.06824818]
[1764138146343,0.03895288,138.61,138.59,3.06824818]
[1764138147946,6.98360541,138.67,138.59,3.06824818]
[1764138148135,1.8680632,138.67,138.59,3.02]
[1764138148847,6.4939,138.66,138.62,3.07416803]
[1764138154749,11.60864221,138.68,138.62,3.07416803]
[1764138155049,6.98360541,138.68,138.62,3.07416803]
[1764138155254,1.8680632,138.68,138.62,3.07416803]
[1764138155848,26.5680632,138.7,138.62,3.07416803]
[1764138156047,26.5680632,138.7,138.65,3.0659893]
[1764138156952,127.5562632,138.7,138.65,3.0659893]
[1764138157152,1.8680632,138.68,138.65,0.0459893]
[1764138158248,6.4934,138.67,138.65,0.0459893]
[1764138158848,6.4934,138.67,138.65,3.0659893]
[1764138159156,127.5562632,138.7,138.65,3.0659893]
[1764138159655,26.5680632,138.7,138.65,3.0659893]
[1764138159955,1.8680632,138.7,138.65,3.0659893]
[1764138161459,8.3602632,138.7,138.65,3.0659893]
[1764138161645,1.8680632,138.7,138.65,3.0659893]
[1764138162356,6.4924,138.69,138.65,3.0659893]
[1764138165460,1.8680632,138.68,138.65,0.0459893]
[1764138166257,1.8680632,138.68,138.65,3.1759893]
[1764138166563,103.90166153,138.7,138.65,3.1759893]
[1764138167262,6.4929,138.68,138.65,3.1759893]
[1764138168156,2.91396153,138.73,138.65,3.1759893]
[1764138168367,2.91396153,138.73,138.68,3.18197688]
[1764138168559,2.91396153,138.73,138.69,0.04645931]
[1764138168964,2.91396153,138.73,138.69,3.17645931]
[1764138169264,9.40466153,138.73,138.69,3.17645931]
[1764138171153,6.491,138.72,138.69,3.17645931]
[1764138172262,5.10020254,138.74,138.69,3.17645931]
[1764138172460,8.01311349,138.77,138.69,3.17645931]
[1764138173258,6.4896,138.75,138.69,3.17645931]
[1764138177969,6.4896,138.75,138.7,3.13]
[1764138184567,100.9423,138.76,138.69,0.04645931]
[1764138184762,2.91396153,138.74,138.69,0.04645931]
[1764138184969,2.91396153,138.74,138.69,2.91645931]
[1764138186263,6.4905,138.73,138.69,2.91645931]
[1764138187177,6.491,138.72,138.69,0.04645931]
[1764138187372,6.491,138.72,138.69,2.91645931]
[1764138187769,2.91396153,138.74,138.69,2.91645931]
[1764138189280,6.4905,138.73,138.69,2.91645931]
[1764138195279,6.491,138.72,138.69,2.91645931]
[1764138197180,6.4914,138.71,138.69,0.04645931]
[1764138197483,32.69317763,138.72,138.64,2.87]
[1764138198275,6.53885932,138.69,138.67,0.0470701]
[1764138198577,0.04645932,138.69,138.67,2.9170701]
[1764138208182,6.53875932,138.69,138.67,2.9170701]
[1764138209188,0.04645932,138.69,138.67,2.9170701]
[1764138209688,6.53875932,138.69,138.67,2.9170701]
[1764138210486,6.53875932,138.69,138.67,0.0470701]
[1764138210680,11.63797542,138.69,138.67,0.0470701]
[1764138210889,6.53875932,138.69,138.67,0.0470701]
[1764138211090,11.63797542,138.69,138.67,2.9170701]
[1764138211285,6.53875932,138.69,138.67,2.9170701]
[1764138211488,11.63797542,138.69,138.67,2.9170701]
[1764138211791,6.53875932,138.69,138.67,2.9170701]
[1764138211992,11.63797542,138.69,138.67,2.9170701]
[1764138212193,6.53875932,138.69,138.67,2.9170701]
[1764138212382,11.63797542,138.69,138.67,2.9170701]
[1764138212582,6.53875932,138.69,138.67,2.9170701]
[1764138212787,11.63797542,138.69,138.67,2.9170701]
[1764138212986,6.53875932,138.69,138.67,2.9170701]
[1764138213189,11.63797542,138.69,138.67,2.9170701]
[1764138213393,6.53875932,138.69,138.67,2.9170701]
[1764138213592,11.63797542,138.69,138.67,2.9170701]
[1764138213793,6.53875932,138.69,138.67,2.9170701]
[1764138213997,11.63797542,138.69,138.67,2.9170701]
[1764138214199,6.53875932,138.69,138.67,2.9170701]
[1764138217803,6.53875932,138.69,138.67,0.0470701]
[1764138219210,6.53875932,138.69,138.67,2.9170701]
[1764138221713,0.04645932,138.69,138.67,2.9170701]
[1764138228913,0.04645932,138.69,138.67,9.4101701]
[1764138229115,0.04645932,138.69,138.68,3.13]
[1764138229314,8.54361621,138.75,138.68,3.13]
[1764138229510,5.14639709,138.74,138.71,3.13]
[1764138229714,15.0891946,138.77,138.71,3.13]
[1764138229915,5.14804704,138.76,138.71,3.13]
[1764138230115,8.35266161,138.77,138.71,3.13]
[1764138230318,8.35266161,138.77,138.73,3.18292738]
[1764138230319,5.14907475,138.76,138.73,3.18292738]
[1764138230518,5.14907475,138.75,138.73,3.18292738]
[1764138230717,5.14907475,138.74,138.73,3.18292738]
[1764138230919,5.14907475,138.76,138.73,3.18292738]
[1764138231114,5.14907475,138.75,138.73,3.18292738]
[1764138231418,5.14907475,138.74,138.73,0.05292738]
[1764138231622,5.14907475,138.76,138.73,0.05292738]
[1764138231819,5.14907475,138.75,138.73,0.05292738]
[1764138232017,5.14907475,138.74,138.73,0.05292738]
[1764138232216,5.14907475,138.76,138.73,0.05292738]
[1764138232419,5.14907475,138.75,138.73,0.05292738]
[1764138232617,5.14907475,138.76,138.73,0.05292738]
[1764138232923,5.14907475,138.75,138.73,0.05292738]
[1764138233115,5.14907475,138.76,138.73,0.05292738]
[1764138233317,5.14907475,138.75,138.73,0.05292738]
[1764138233521,5.14907475,138.76,138.73,0.05292738]
[1764138233722,5.14907475,138.75,138.73,0.05292738]
[1764138233923,5.14907475,138.76,138.73,0.05292738]
[1764138234124,5.14907475,138.75,138.73,0.05292738]
[1764138234325,5.14907475,138.76,138.73,0.05292738]
[1764138234626,5.14907475,138.75,138.73,0.05292738]
[1764138234923,5.14907475,138.76,138.73,0.05292738]
[1764138235124,5.14907475,138.75,138.73,0.05292738]
[1764138235317,5.14907475,138.76,138.73,0.05292738]
[1764138235627,5.14907475,138.75,138.73,0.05292738]
[1764138235825,5.14907475,138.76,138.73,0.05292738]
[1764138236014,5.14907475,138.75,138.73,0.05292738]
[1764138236218,8.35266161,138.77,138.73,0.05292738]
[1764138236219,5.14907475,138.76,138.73,0.05292738]
[1764138237319,11.63827475,138.76,138.73,0.05292738]
[1764138237520,6.4892,138.76,138.73,3.18292738]
[1764138241736,31.1674,138.8,138.73,3.18292738]
[1764138242035,24.68,138.8,138.73,3.18292738]
[1764138243125,8.60207144,138.83,138.75,3.05]
[1764138243421,1.86386161,138.83,138.75,3.05]
[1764138243633,1.86386161,138.83,138.79,3.05]
[1764138244334,125.5659,138.84,138.78,3.10530274]
[1764138244536,1.86386161,138.83,138.78,3.10530274]
[1764138245238,6.4864,138.82,138.78,3.10530274]
[1764138246338,1.86386161,138.81,138.78,0.05530274]
[1764138247240,1.86386161,138.83,138.78,3.10530274]
[1764138248342,6.4864,138.82,138.78,3.10530274]
[1764138250542,6.4855,138.84,138.78,3.10530274]
[1764138251042,6.4859,138.83,138.78,3.10530274]
[1764138251343,1.86386161,138.84,138.78,3.10530274]
[1764138252242,6.4856,138.84,138.78,3.10530274]
[1764138252430,6.4856,138.84,138.79,3.06]
[1764138253945,100.8778,138.85,138.79,3.06]
[1764138254147,100.8778,138.85,138.81,3.11099933]
[1764138256546,6.486,138.83,138.81,3.11099933]
[1764138260542,6.4851,138.85,138.81,3.11099933]
[1764138260748,100.8566,138.88,138.81,3.11099933]
[1764138260946,102.72046161,138.88,138.81,3.11099933]
[1764138261246,6.4845,138.86,138.81,3.11099933]
[1764138262154,6.4845,138.86,138.82,3.06]
[1764138262352,6.4836,138.88,138.82,3.06]
[1764138262550,6.4836,138.88,138.83,3.06]
[1764138262854,6.4836,138.88,138.82,1.86386161]
[1764138262855,6.4836,138.88,138.85,3.06]
[1764138268842,8.34786161,138.87,138.84,0.05006172]
[1764138271559,6.4845,138.86,138.84,0.05006172]
[1764138271757,6.4845,138.86,138.84,3.11006172]
[1764138272956,6.4845,138.86,138.84,0.05006172]
[1764138273161,1.86386161,138.85,138.84,0.05006172]
[1764138273462,100.8865,138.84,138.75,3.06]
[1764138273655,1.86386161,138.81,138.75,3.06]
[1764138274247,8.35096161,138.81,138.75,3.06]
[1764138274649,0.04767851,138.79,138.77,0.04691872]
[1764138274857,0.04767851,138.79,138.78,3.06]
[1764138281668,0.04767851,138.79,138.77,0.04691872]
[1764138282057,1.91154012,138.79,138.77,0.04691872]
[1764138288168,8.39934012,138.79,138.77,0.04691872]
[1764138288364,8.39934012,138.79,138.72,2.97]
[1764138288665,9.44596238,138.79,138.72,2.97]
[1764138289662,9.44596238,138.79,138.74,0.04880947]
[1764138297370,9.44596238,138.79,138.74,3.01880947]
[1764138299375,6.4882,138.78,138.74,3.01880947]
[1764138299973,0.04767851,138.79,138.74,3.01880947]
[1764138300569,0.04767851,138.79,138.74,9.50870947]
[1764138300768,0.04767851,138.79,138.75,2.97]
[1764138303871,6.4886,138.77,138.74,2.93880947]
[1764138304067,0.04767851,138.79,138.74,0.04880947]
[1764138304676,6.4892,138.76,138.74,0.04880947]
[1764138310876,6.4892,138.76,138.74,3.06880947]
[1764138311067,100.96977851,138.79,138.74,3.06880947]
[1764138311068,125.62977851,138.79,138.74,3.06880947]
[1764138312285,6.4886,138.77,138.74,3.06880947]
[1764138314690,6.4891,138.76,138.74,3.06880947]
[1764138314986,6.4891,138.76,138.74,0.04880947]
[1764138319086,6.4903,138.74,138.7,3.02]
[1764138319988,0.05541532,138.73,138.71,3.07140621]
[1764138320585,6.54611532,138.73,138.71,3.07140621]
[1764138321184,6.54611532,138.73,138.71,0.05140621]
[1764138323388,6.54611532,138.73,138.71,3.07140621]
[1764138325283,0.05541532,138.73,138.71,3.07140621]
[1764138331699,0.05541532,138.73,138.71,0.05140621]
[1764138332401,0.05541532,138.73,138.71,3.07140621]
[1764138333303,6.54591532,138.73,138.71,3.07140621]
[1764138333804,6.54591532,138.73,138.71,0.05140621]
[1764138336604,6.54591532,138.73,138.71,3.07140621]
[1764138341212,0.05541532,138.73,138.71,3.07140621]
[1764138347217,21.2627546,138.73,138.71,3.07140621]
[1764138347411,0.05541532,138.73,138.71,3.07140621]
[1764138349518,1.91874245,138.73,138.71,0.05140621]
[1764138351416,8.40924245,138.73,138.71,0.05140621]
[1764138353118,6.54591532,138.73,138.71,2.96140621]
[1764138353325,8.59582009,138.78,138.71,2.96140621]
[1764138353817,6.4886,138.77,138.71,2.96140621]
[1764138354418,0.04747236,138.75,138.71,2.96140621]
[1764138359929,6.53697236,138.75,138.71,2.96140621]
[1764138361230,0.04747236,138.75,138.71,2.96140621]
[1764138361917,1.86332713,138.74,138.71,2.96140621]
[1764138362118,1.86332713,138.72,138.71,0.05140621]
[1764138362927,1.86332713,138.72,138.67,2.92]
[1764138363221,1.86332713,138.7,138.64,2.92]
[1764138363422,8.35532713,138.7,138.64,2.92]
[1764138363617,1.86332713,138.68,138.64,2.92]
[1764138363819,1.86332713,138.68,138.65,0.05158397]
[1764138364026,0.05547778,138.67,138.65,2.97158397]
[1764138370336,6.4915,138.71,138.65,2.97158397]
[1764138371331,0.05240898,138.69,138.65,2.97158397]
[1764138373146,0.05240898,138.69,138.65,0.05158397]
[1764138373147,1.91573611,138.69,138.65,0.05158397]
[1764138373543,6.4934,138.67,138.65,0.05158397]
[1764138373742,6.4934,138.67,138.65,3.09158397]
[1764138374937,8.40833611,138.69,138.65,3.09158397]
[1764138375144,1.91573611,138.69,138.65,3.09158397]
[1764138375345,102.91093611,138.69,138.65,0.05158397]
[1764138376437,6.4934,138.67,138.65,0.05158397]
[1764138376637,6.4934,138.67,138.65,3.09158397]
[1764138377444,6.4934,138.67,138.65,0.05158397]
[1764138377650,6.4934,138.67,138.65,3.09158397]
[1764138378248,6.54500898,138.69,138.65,3.09158397]
[1764138383241,6.4929,138.68,138.65,3.09158397]
[1764138385444,0.05240898,138.69,138.65,3.09158397]
[1764138388656,1.91573611,138.69,138.65,3.09158397]
[1764138393353,8.40823611,138.69,138.65,3.09158397]
[1764138396461,0.05240898,138.69,138.65,3.09158397]
[1764138407259,6.54480898,138.69,138.65,3.09158397]
[1764138407459,1.86332713,138.68,138.65,0.05158397]
[1764138408267,6.4935,138.67,138.65,0.05158397]
[1764138408764,6.4935,138.67,138.65,3.17158397]
[1764138423277,6.4946,138.64,138.62,2.96]
[1764138423472,101.0059,138.68,138.62,2.96]
[1764138424073,6.4942,138.65,138.62,2.96]
[1764138424271,6.54696349,138.65,138.62,3.00914235]
[1764138430577,0.05276349,138.65,138.62,3.00914235]
[1764138432476,6.54696349,138.65,138.62,3.00914235]
[1764138433876,0.05276349,138.65,138.62,3.00914235]
[1764138434081,0.05276349,138.65,138.62,11.98556011]
[1764138434289,0.05276349,138.65,138.63,2.9]
[1764138438292,0.05276349,138.65,138.63,9.395]
[1764138439291,0.05276349,138.65,138.64,2.9]
[1764138457904,132.40571838,138.71,138.64,2.9]
[1764138457905,6.74521838,138.71,138.64,2.9]
[1764138458205,9.6597537,138.74,138.65,11.87641776]
[1764138458408,9.6597537,138.74,138.66,2.9]
[1764138458704,6.4908,138.73,138.67,2.9]
[1764138458908,0.05051848,138.71,138.7,2.9]
[1764138459101,24.66,138.76,138.7,2.9]
[1764138459302,0.04712144,138.72,138.7,2.9]
[1764138476924,102.79227876,138.78,138.7,2.9]
[1764138477221,124.61377774,138.8,138.72,3.05]
[1764138478016,0.03800205,138.77,138.76,3.05]
[1764138478427,0.03800205,138.77,138.75,3.10187508]
[1764138479417,6.52670205,138.77,138.75,3.10187508]
[1764138481326,6.52670205,138.77,138.75,0.05187508]
[1764138482630,6.52670205,138.77,138.75,2.92187508]
[1764138483422,6.52670205,138.77,138.75,0.05187508]
[1764138484728,6.52670205,138.77,138.75,2.92187508]
[1764138485726,0.03800205,138.77,138.75,2.92187508]
[1764138498247,31.147,138.81,138.75,2.92187508]
[1764138498450,6.487,138.81,138.75,2.92187508]
[1764138499550,6.4872,138.8,138.75,2.92187508]
[1764138501249,1.86297876,138.8,138.75,2.92187508]
[1764138501848,6.4882,138.78,138.75,2.92187508]
[1764138504854,8.35047876,138.8,138.75,2.92187508]
[1764138509043,1.86297876,138.8,138.75,2.92187508]
[1764138509248,6.4877,138.79,138.75,2.92187508]
[1764138509550,1.86297876,138.82,138.75,2.92187508]
[1764138509756,6.4871,138.81,138.75,2.92187508]
[1764138509955,1.86297876,138.82,138.75,2.92187508]
[1764138510154,1.86297876,138.8,138.75,2.92187508]
[1764138510347,100.9195,138.79,138.76,0.05446017]
[1764138510544,1.86297876,138.76,138.72,3.07]
[1764138510747,1.86297876,138.74,138.73,0.05272692]
[1764138512254,8.35307876,138.74,138.73,0.05272692]
[1764138513155,6.4901,138.74,138.73,0.05272692]
[1764138517162,1.86297876,138.76,138.73,3.12272692]
[1764138517958,1.86297876,138.76,138.73,0.05272692]
[1764138518260,6.4896,138.75,138.73,0.05272692]
[1764138520756,100.9307,138.78,138.73,3.12272692]
[1764138520757,6.4888,138.77,138.73,3.12272692]
[1764138521763,6.4891,138.76,138.73,3.12272692]
[1764138529769,6.4896,138.75,138.73,3.12272692]
[1764138529970,6.4896,138.75,138.73,0.05272692]
[1764138538471,31.1296,138.75,138.73,0.05272692]
[1764138549975,103.87449703,138.73,138.66,3.1]
[1764138550179,24.64,138.72,138.66,3.1]
[1764138550374,24.64,138.72,138.64,3.1]
[1764138550375,125.613,138.72,138.64,3.1]
[1764138550775,125.613,138.72,138.67,0.05414982]
[1764138550776,6.4929,138.68,138.67,0.05414982]
[1764138552180,0.05272693,138.69,138.67,2.93414982]
[1764138562898,6.54512693,138.69,138.67,2.93414982]
[1764138563288,6.54512693,138.69,138.67,0.05414982]
[1764138564789,6.54512693,138.69,138.67,2.93414982]
[1764138569291,0.05272693,138.69,138.67,2.93414982]
[1764138577501,0.05272693,138.69,138.62,8.97641776]
[1764138577708,0.05272693,138.69,138.63,2.88]
[1764138577904,2.91059703,138.7,138.63,2.88]
[1764138578708,0.05555653,138.68,138.65,2.93477678]
[1764138579396,6.54845653,138.68,138.65,2.93477678]
[1764138588213,6.4933,138.67,138.65,2.93477678]
[1764138591723,0.05555653,138.68,138.65,2.93477678]
[1764138592727,1.86478709,138.75,138.67,2.9]
[1764138593522,6.4898,138.75,138.69,2.9]
[1764138593727,0.04701126,138.73,138.72,2.9]
[1764138600328,0.04701126,138.73,138.71,0.05298408]
[1764138601431,6.53761126,138.73,138.71,0.05298408]
[1764138603233,1.86478709,138.72,138.71,0.05298408]
[1764138608340,0.04701126,138.73,138.71,3.19298408]
[1764138613639,1.86478709,138.76,138.71,3.19298408]
[1764138614445,6.4893,138.76,138.71,3.19298408]
[1764138622253,6.4896,138.75,138.71,3.19298408]
[1764138622442,1.86478709,138.74,138.71,0.05298408]
[1764138622958,6.4905,138.73,138.71,0.05298408]
[1764138626455,6.4905,138.73,138.71,3.08298408]
[1764138626651,6.4905,138.73,138.71,0.05298408]
[1764138628060,24.64,138.74,138.71,3.08298408]
[1764138629351,31.1301,138.74,138.71,3.08298408]
[1764138630054,1.86478709,138.78,138.71,3.08298408]
[1764138631347,6.4884,138.78,138.73,3.03]
[1764138631559,6.4884,138.78,138.75,3.03]
[1764138632563,6.4886,138.77,138.75,3.03]
[1764138633850,6.4892,138.76,138.74,0.04666929]
[1764138634053,8.35398709,138.76,138.74,0.04666929]
[1764138638958,6.4892,138.76,138.74,0.04666929]
[1764138639259,6.4892,138.76,138.74,3.07666929]
[1764138641567,24.64,138.78,138.74,3.07666929]
[1764138642765,26.50478709,138.78,138.74,0.04666929]
[1764138643567,8.35388709,138.76,138.74,0.04666929]
[1764138645168,6.4891,138.76,138.74,0.04666929]
[1764138646775,1.86478709,138.8,138.74,3.04666929]
[1764138648366,6.4882,138.78,138.74,3.04666929]
[1764138649670,8.35298709,138.78,138.74,3.04666929]
[1764138652577,6.4882,138.78,138.74,3.04666929]
[1764138659278,6.4875,138.8,138.74,3.04666929]
[1764138659474,27.52964139,138.81,138.74,3.04666929]
[1764138660786,100.912,138.8,138.74,0.04666929]
[1764138660987,2.90964139,138.78,138.74,3.04666929]
[1764138661385,9.39784139,138.78,138.74,3.04666929]
[1764138661884,13.19560431,138.8,138.74,3.04666929]
[1764138662090,34.2377457,138.82,138.74,3.04666929]